bitfinex/quotes_SOLUSD_20240920
["timestamp","ask_amount","ask_price","bid_price","bid_amount"]
[1726840923519,0.2522661,147.54,147.53,24.22004407]
[1726840924340,0.2522661,147.54,147.53,22.8649]
[1726840925208,0.2522661,147.54,147.53,74.21995284]
[1726840925411,0.2522661,147.54,147.53,72.8649]
[1726840925798,0.2522661,147.59,147.58,6.7759]
[1726840928998,0.2522661,147.59,147.57,6.7763]
[1726840929203,0.2522661,147.59,147.58,6.7759]
[1726840929412,0.2522661,147.59,147.57,6.7763]
[1726840930014,0.2522661,147.59,147.53,16.0867]
[1726840930222,1.94611265,147.59,147.53,16.0867]
[1726840930425,1.94611265,147.59,147.54,6.7774]
[1726840930628,23.776884,147.58,147.54,6.7774]
[1726840931135,23.776884,147.58,147.55,6.7772]
[1726840931307,23.776884,147.58,147.5,15.4834]
[1726840931308,23.776884,147.58,147.54,6.7777]
[1726840932210,23.776884,147.58,147.54,23.7215]
[1726840932627,0.2522661,147.59,147.55,1.35528965]
[1726840932808,24.0291501,147.59,147.55,1.35528965]
[1726840933009,0.2522661,147.59,147.55,1.35528965]
[1726840933229,0.2522661,147.59,147.57,16.9404]
[1726840933444,0.2522661,147.59,147.58,1.35505581]
[1726840934109,0.2522661,147.59,147.58,8.13095581]
[1726840934525,0.2522661,147.59,147.58,6.7759]
[1726840935044,0.2522661,147.59,147.58,42.34175461]
[1726840935231,0.2522661,147.59,147.58,67.59868539]
[1726840935427,0.2522661,147.63,147.62,6.7741]
[1726840935624,0.2522661,147.63,147.62,32.66585461]
[1726840935932,0.2522661,147.68,147.67,6.7718]
[1726840936724,0.2522661,147.68,147.67,8.12569983]
[1726840937113,0.0686858,147.7,147.69,56.7709]
[1726840937317,8.58e-05,147.7,147.69,121.35900916]
[1726840937518,0.3553122,147.73,147.72,6.7695]
[1726840937717,0.3553122,147.73,147.72,26.10175461]
[1726840938421,0.3553122,147.73,147.72,47.58048817]
[1726840939020,0.3553122,147.73,147.72,46.22724461]
[1726840939226,0.3553122,147.73,147.72,70.00412861]
[1726840939912,0.3553122,147.73,147.72,26.10175461]
[1726840940245,0.3553122,147.73,147.72,6.7695]
[1726840940532,0.3553122,147.73,147.72,8.24823312]
[1726840940735,0.3553122,147.73,147.72,52.02511712]
[1726840940914,0.3553122,147.73,147.72,50.671874]
[1726840941115,0.3553122,147.73,147.72,26.7695]
[1726840941326,0.3553122,147.73,147.72,6.7695]
[1726840942108,0.3553122,147.73,147.71,6.7698]
[1726840943127,0.3553122,147.73,147.63,6.6137]
[1726840943727,0.3553122,147.73,147.68,6.7712]
[1726840943728,0.12549,147.72,147.68,6.7712]
[1726840943936,23.776884,147.71,147.65,6.7726]
[1726840944143,30.546884,147.71,147.63,6.6137]
[1726840944644,23.776884,147.71,147.67,6.7718]
[1726840944947,23.776884,147.71,147.68,6.7713]
[1726840945234,23.902374,147.72,147.68,6.7713]
[1726840945931,24.1321962,147.73,147.69,6.7705]
[1726840946136,23.776884,147.71,147.67,6.7718]
[1726840946342,1.69278424,147.7,147.67,6.7718]
[1726840946525,0.12549,147.67,147.59,6.1076]
[1726840946733,20.0,147.7,147.6,1.35462586]
[1726840946945,23.902374,147.67,147.63,6.7733]
[1726840947818,6.771,147.69,147.64,6.7729]
[1726840948044,23.902374,147.68,147.64,6.7729]
[1726840948218,23.902374,147.68,147.65,6.7727]
[1726840948420,23.776884,147.69,147.65,6.7727]
[1726840949639,22.1014,147.71,147.6,0.12549]
[1726840949840,22.1014,147.71,147.67,6.7717]
[1726840950019,30.56428218,147.71,147.67,6.7717]
[1726840950215,30.56428218,147.71,147.59,30.81987703]
[1726840950424,23.79418218,147.71,147.58,50.0]
[1726840950647,22.1014,147.71,147.64,6.7731]
[1726840950834,1.6931037,147.7,147.58,20.0]
[1726840951139,0.12549,147.68,147.58,70.0]
[1726840951347,0.12549,147.68,147.64,6.7728]
[1726840951914,23.776884,147.67,147.64,6.7728]
[1726840952320,25.59545382,147.68,147.64,6.7728]
[1726840952552,23.902374,147.68,147.64,6.7728]
[1726840953227,23.902374,147.68,147.63,6.7735]
[1726840953532,23.776884,147.66,147.63,6.7735]
[1726840953926,23.776884,147.66,147.62,6.7741]
[1726840954251,23.776884,147.66,147.63,6.7735]
[1726840954443,23.776884,147.67,147.63,6.7735]
[1726840954938,23.776884,147.67,147.65,6.7724]
[1726840955243,23.902374,147.68,147.65,6.7724]
[1726840955649,23.902374,147.68,147.57,15.4790661]
[1726840955942,25.59551008,147.68,147.63,6.7735]
[1726840956248,32.36691008,147.68,147.63,6.7735]
[1726840956540,30.673774,147.68,147.63,6.7735]
[1726840956845,30.673774,147.68,147.64,6.7731]
[1726840957139,23.902374,147.68,147.64,6.7731]
[1726840957558,23.902374,147.68,147.65,6.7724]
[1726840957731,0.12549,147.68,147.65,6.7724]
[1726840958635,0.12549,147.68,147.58,51.35450869]
[1726840958636,0.12549,147.68,147.66,6.7722]
[1726840959723,0.12549,147.68,147.65,6.7726]
[1726840961746,23.776884,147.67,147.58,20.0]
[1726840961930,23.902374,147.66,147.62,6.7738]
[1726840962637,6.7715,147.68,147.63,6.7733]
[1726840962953,23.776884,147.67,147.63,6.7733]
[1726840963125,23.776884,147.68,147.65,6.7727]
[1726840963331,23.902374,147.69,147.58,0.12549]
[1726840963537,23.776884,147.67,147.65,6.7727]
[1726840964635,6.7705,147.7,147.66,6.7723]
[1726840964834,23.776884,147.69,147.67,6.7718]
[1726840965042,29.16403939,147.71,147.67,6.7717]
[1726840965226,29.16403939,147.71,147.61,19.29450726]
[1726840965227,28.8715,147.71,147.61,19.29450726]
[1726840965426,1.69279716,147.7,147.6,20.0]
[1726840965621,1.69291984,147.69,147.58,20.0]
[1726840965949,6.7715,147.68,147.64,6.7731]
[1726840966241,23.776884,147.67,147.64,6.7731]
[1726840968048,23.776884,147.67,147.63,6.7735]
[1726840968244,30.548784,147.67,147.63,6.7735]
[1726840968451,32.24193005,147.67,147.63,6.7735]
[1726840968639,32.24193005,147.67,147.57,15.4790661]
[1726840968640,0.12549,147.66,147.57,15.4790661]
[1726840968821,6.89919,147.63,147.58,6.7758]
[1726840969025,1.6936688,147.62,147.58,6.7758]
[1726840969221,0.12549,147.63,147.58,6.7758]
[1726840969445,23.776884,147.62,147.58,6.7758]
[1726840969643,50.701374,147.78,147.58,6.7758]
[1726840969844,27.4711,147.77,147.59,6.7754]
[1726840970065,29.28319903,147.77,147.59,6.7754]
[1726840970350,0.45849116,147.76,147.58,16.9394]
[1726840970549,0.45849116,147.76,147.58,23.7152]
[1726840970749,0.2821,147.75,147.58,23.7152]
[1726840971243,6.7741,147.62,147.58,16.9394]
[1726840971557,6.90139,147.58,147.57,0.8254841]
[1726840972035,27.35988116,147.58,147.57,0.8254841]
[1726840972436,20.12549,147.57,147.52,0.2522661]
[1726840972734,0.12549,147.55,147.52,0.2522661]
[1726840972939,0.45849116,147.54,147.52,0.2522661]
[1726840973247,0.12549,147.56,147.52,0.2522661]
[1726840973827,0.58398116,147.56,147.52,0.2522661]
[1726840974328,7.36088116,147.56,147.52,0.2522661]
[1726840976636,6.90239,147.56,147.52,0.2522661]
[1726840976835,0.45849116,147.55,147.52,0.2522661]
[1726840979851,6.90239,147.56,147.52,0.2522661]
[1726840980430,0.45849116,147.55,147.52,0.2522661]
[1726840980856,23.902374,147.56,147.52,0.2522661]
[1726840981159,6.90369,147.53,147.52,0.2522661]
[1726840982462,6.7774,147.55,147.52,0.2522661]
[1726840982644,0.58398116,147.54,147.52,0.2522661]
[1726840982961,0.45849116,147.54,147.52,0.2522661]
[1726840983261,6.777,147.56,147.52,0.2522661]
[1726840983635,6.775,147.61,147.53,16.9453]
[1726840983861,7.06399137,147.6,147.55,23.776884]
[1726840984065,16.0797,147.64,147.57,16.9404]
[1726840984238,0.2522661,147.68,147.59,6.7752]
[1726840984239,6.7737,147.63,147.59,6.7752]
[1726840984435,6.7737,147.63,147.58,6.7758]
[1726840984655,0.45849116,147.62,147.57,23.7167]
[1726840984860,23.99126507,147.66,147.57,23.7167]
[1726840985065,6.7742,147.62,147.58,6.7758]
[1726840985358,6.7742,147.62,147.57,23.7167]
[1726840985659,0.58398116,147.61,147.57,23.7167]
[1726840985862,7.35878116,147.61,147.57,23.7167]
[1726840986043,6.90029,147.61,147.57,23.7167]
[1726840986951,0.45849116,147.6,147.57,23.7167]
[1726840987656,6.90029,147.61,147.57,23.7167]
[1726840988155,0.12549,147.61,147.57,23.7167]
[1726840988660,0.12549,147.61,147.58,6.7759]
[1726840988871,7.06006507,147.66,147.61,6.7745]
[1726840989161,7.0237661,147.68,147.62,1.35478329]
[1726840989366,0.45849116,147.67,147.63,16.9334]
[1726840989663,0.45849116,147.67,147.63,23.7069]
[1726840989859,6.7727,147.65,147.61,6.7744]
[1726840990158,0.2522661,147.68,147.62,6.7739]
[1726840990344,7.23029116,147.67,147.62,6.7739]
[1726840990546,6.7718,147.67,147.63,6.7736]
[1726840991560,0.2522661,147.68,147.6,31.9961]
[1726840991561,0.12549,147.65,147.6,31.9961]
[1726840991770,0.2522661,147.68,147.61,23.776884]
[1726840991771,20.2522661,147.68,147.61,23.776884]
[1726840991942,6.89839,147.65,147.6,38.7707]
[1726840992268,0.12549,147.65,147.61,6.7745]
[1726840992837,0.12549,147.65,147.62,6.774]
[1726840993041,0.12549,147.67,147.63,6.7733]
[1726840993341,7.35588116,147.67,147.62,23.7089]
[1726840993672,6.7736,147.63,147.59,29.9606]
[1726840993960,0.45849116,147.62,147.59,23.1853]
[1726840994268,7.23269116,147.62,147.59,16.9381]
[1726840994487,7.23269116,147.62,147.58,6.7758]
[1726840994488,6.7751,147.6,147.56,32.2024]
[1726840994765,0.12549,147.58,147.52,15.5129661]
[1726840994965,0.12549,147.56,147.52,22.2911661]
[1726840995470,7.36108116,147.56,147.52,0.2522661]
[1726840995646,0.58398116,147.56,147.52,7.0308661]
[1726840996865,0.12549,147.56,147.52,7.0308661]
[1726840997665,0.58398116,147.56,147.52,7.0308661]
[1726840997853,6.90249,147.56,147.52,0.2522661]
[1726840998040,0.45849116,147.55,147.52,0.2522661]
[1726840998239,0.12549,147.56,147.52,0.2522661]
[1726840998968,0.12549,147.56,147.53,6.7781]
[1726840999267,0.12549,147.57,147.53,6.7781]
[1726840999469,0.12549,147.55,147.52,0.2522661]
[1726840999671,0.58398116,147.55,147.52,0.2522661]
[1726841000042,6.7765,147.57,147.52,0.2522661]
[1726841000252,0.12549,147.58,147.54,6.7777]
[1726841000462,6.7756,147.59,147.54,6.7777]
[1726841000970,6.7756,147.59,147.55,6.7773]
[1726841001363,7.23459116,147.58,147.53,6.7781]
[1726841001751,0.12549,147.57,147.53,6.7781]
[1726841002159,0.45849116,147.56,147.52,17.1982661]
[1726841002363,7.23539116,147.56,147.52,17.1982661]
[1726841002665,6.90279,147.55,147.52,17.1982661]
[1726841002862,0.45849116,147.54,147.52,0.2522661]
[1726841003469,0.12549,147.53,147.52,0.2522661]
[1726841003851,20.0,147.57,147.52,0.2522661]
[1726841003852,0.12549,147.56,147.52,0.2522661]
[1726841004162,7.06331508,147.61,147.52,0.2522661]
[1726841004369,7.06331508,147.61,147.56,16.9416]
[1726841004558,6.7741,147.62,147.56,16.9416]
[1726841004767,0.45849116,147.61,147.57,6.7764]
[1726841004946,0.45849116,147.61,147.56,16.9416]
[1726841005268,0.45849116,147.61,147.55,13.0535]
[1726841005269,6.7756,147.59,147.55,6.2766]
[1726841005472,0.45849116,147.58,147.55,6.2766]
[1726841005656,0.12549,147.58,147.55,6.2766]
[1726841005852,0.12549,147.58,147.55,13.0538]
[1726841006260,0.12549,147.59,147.55,13.0538]
[1726841006460,6.7749,147.61,147.56,6.7768]
[1726841007162,0.45849116,147.6,147.56,6.7768]
[1726841007350,6.7749,147.61,147.56,6.7768]
[1726841007544,0.45849116,147.6,147.56,6.7768]
[1726841008561,7.23359116,147.6,147.55,29.9965]
[1726841008865,6.7751,147.6,147.55,29.9965]
[1726841009278,6.7751,147.6,147.56,6.7768]
[1726841009655,6.4651,147.6,147.56,6.7768]
[1726841010450,30.02008085,147.65,147.57,16.9406]
[1726841010451,7.06218085,147.65,147.57,16.9406]
[1726841010675,13.83528085,147.65,147.6,6.7748]
[1726841010985,6.774,147.63,147.59,16.9383]
[1726841011273,6.774,147.63,147.59,23.7137]
[1726841011975,6.7731,147.65,147.59,16.9383]
[1726841012155,6.7731,147.65,147.6,6.7749]
[1726841012350,6.7731,147.65,147.59,16.9383]
[1726841012351,7.23179116,147.64,147.59,23.7138]
[1726841012557,6.7733,147.64,147.59,23.7138]
[1726841012775,36.9312,147.66,147.56,16.9416]
[1726841013077,6.7737,147.63,147.57,23.776884]
[1726841013281,0.45849116,147.62,147.57,23.776884]
[1726841013573,0.12549,147.62,147.58,16.9395]
[1726841014361,0.12549,147.62,147.59,6.7755]
[1726841016269,0.58398116,147.62,147.59,6.7755]
[1726841016780,0.12549,147.62,147.59,6.7755]
[1726841017466,0.58398116,147.62,147.59,6.7755]
[1726841017674,20.0,147.66,147.6,16.9372]
[1726841017874,6.7723,147.66,147.62,6.7738]
[1726841018064,13.84244093,147.67,147.63,6.7735]
[1726841018265,6.7718,147.67,147.63,6.7735]
[1726841018480,7.0237661,147.68,147.63,6.7735]
[1726841018866,7.23039116,147.67,147.63,6.7735]
[1726841019064,6.7719,147.67,147.63,6.7735]
[1726841019285,7.0237661,147.68,147.64,6.7731]
[1726841019487,0.58398116,147.67,147.64,6.7731]
[1726841019683,0.58398116,147.67,147.62,16.9348]
[1726841019684,6.89729,147.67,147.63,6.7735]
[1726841019880,0.2522661,147.68,147.67,6.7718]
[1726841020087,0.2522661,147.68,147.67,8.12610456]
[1726841020577,0.2522661,147.68,147.67,6.7718]
[1726841022300,0.2522661,147.68,147.66,16.9302]
[1726841023093,0.2522661,147.68,147.67,6.7718]
[1726841023900,0.2522661,147.68,147.66,16.9302]
[1726841024392,0.2522661,147.68,147.67,1.35433716]
[1726841024698,0.2522661,147.68,147.66,23.7024]
[1726841025121,0.2522661,147.68,147.67,6.7718]
[1726841025309,0.2522661,147.68,147.67,8.12600014]
[1726841025496,0.2522661,147.68,147.66,23.7024]
[1726841025698,0.2522661,147.68,147.67,6.7718]
[1726841026286,0.2522661,147.68,147.67,8.12600056]
[1726841026712,0.2522661,147.68,147.67,30.548684]
[1726841027014,0.2522661,147.68,147.67,6.7718]
[1726841027210,0.2522661,147.68,147.67,30.548684]
[1726841028205,0.2522661,147.68,147.67,6.7718]
[1726841030789,0.2522661,147.68,147.67,31.90280941]
[1726841031015,0.2522661,147.68,147.67,30.548684]
[1726841033197,0.2522661,147.68,147.67,6.7718]
[1726841034010,0.2522661,147.68,147.66,23.7024]
[1726841034215,0.2522661,147.68,147.66,16.9302]
[1726841035919,0.2522661,147.68,147.67,6.7718]
[1726841036291,0.2522661,147.68,147.66,23.7023]
[1726841036493,0.2522661,147.68,147.66,16.9302]
[1726841037302,0.2522661,147.68,147.67,30.548684]
[1726841037812,0.2522661,147.68,147.67,84.407884]
[1726841038021,0.2522661,147.68,147.67,50.548684]
[1726841038389,0.2522661,147.68,147.67,51.90254805]
[1726841038596,0.2522661,147.68,147.67,50.548684]
[1726841042897,0.2522661,147.68,147.67,26.7718]
[1726841043503,0.2522661,147.68,147.67,28.1258134]
[1726841044120,0.2522661,147.68,147.67,51.9026974]
[1726841044317,0.2522661,147.68,147.67,50.548684]
[1726841052807,0.2522661,147.68,147.67,26.7718]
[1726841053010,0.2522661,147.68,147.66,50.7898]
[1726841053011,0.2522661,147.68,147.66,29.7524]
[1726841053429,0.2522661,147.68,147.66,6.05]
[1726841054002,0.2522661,147.68,147.66,12.8219]
[1726841055028,6.89729,147.67,147.66,6.05]
[1726841055207,0.12549,147.67,147.66,6.05]
[1726841056316,0.2522661,147.68,147.66,6.05]
[1726841056522,0.2522661,147.68,147.66,12.8219]
[1726841056823,0.2522661,147.68,147.67,6.7718]
[1726841057322,0.2522661,147.68,147.67,50.548684]
[1726841057825,0.2522661,147.68,147.67,26.7718]
[1726841058028,0.2522661,147.68,147.66,22.9802]
[1726841058207,0.2522661,147.68,147.66,29.752]
[1726841059404,0.2522661,147.68,147.66,6.05]
[1726841060512,7.0239661,147.68,147.66,6.05]
[1726841060829,6.89729,147.67,147.66,6.05]
[1726841062325,20.0,147.66,147.54,15.0926]
[1726841062526,23.776884,147.65,147.54,15.0926]
[1726841062738,20.0,147.64,147.54,15.0926]
[1726841062907,20.0,147.66,147.54,15.0926]
[1726841063110,6.7745,147.62,147.57,23.7165]
[1726841063309,6.7745,147.62,147.58,6.7759]
[1726841063509,0.12549,147.62,147.59,6.7755]
[1726841064431,0.12549,147.63,147.59,16.9377]
[1726841064609,0.12549,147.63,147.61,6.7746]
[1726841065504,0.12549,147.63,147.6,6.7749]
[1726841066234,0.12549,147.66,147.62,6.7737]
[1726841066429,6.89789,147.66,147.62,6.7737]
[1726841066631,7.35638116,147.66,147.62,6.7737]
[1726841066835,0.12549,147.66,147.62,6.7737]
[1726841067544,0.58398116,147.66,147.63,6.7736]
[1726841067725,7.0237661,147.68,147.63,6.7736]
[1726841067726,0.2522661,147.68,147.66,6.7721]
[1726841067911,0.2522661,147.68,147.63,16.9337]
[1726841067912,0.2522661,147.68,147.65,6.7726]
[1726841069629,0.71075726,147.68,147.65,6.7726]
[1726841069821,0.71075726,147.68,147.64,6.773]
[1726841070021,6.7728,147.65,147.61,6.7744]
[1726841070217,0.12549,147.67,147.6,6.1742]
[1726841070218,0.45849116,147.66,147.6,6.775]
[1726841070420,6.89829,147.65,147.6,6.775]
[1726841070731,6.89829,147.65,147.61,6.7744]
[1726841071124,0.12549,147.67,147.6,1.3547746]
[1726841071330,0.12549,147.67,147.56,25.45431016]
[1726841071331,6.7725,147.66,147.62,6.7741]
[1726841071517,7.35588116,147.67,147.62,6.7741]
[1726841072331,6.7723,147.66,147.62,6.7741]
[1726841073036,0.12549,147.65,147.61,23.7104]
[1726841074225,0.12549,147.67,147.62,1.35473647]
[1726841074430,0.12549,147.67,147.64,6.7731]
[1726841074733,7.48255726,147.68,147.64,6.7731]
[1726841075613,0.71075726,147.68,147.63,16.9336]
[1726841075813,6.7731,147.65,147.6,23.7119]
[1726841076025,0.45849116,147.64,147.6,16.9373]
[1726841076226,0.45849116,147.64,147.6,23.7122]
[1726841077032,0.45849116,147.64,147.61,6.7745]
[1726841077838,0.12549,147.66,147.62,6.774]
[1726841078234,6.89779,147.66,147.62,6.774]
[1726841078934,0.12549,147.66,147.63,6.7734]
[1726841080837,0.12549,147.67,147.63,1.35464991]
[1726841081027,0.12549,147.67,147.64,6.7728]
[1726841084038,0.58398116,147.67,147.6,20.0]
[1726841084223,0.58398116,147.67,147.61,16.936]
[1726841084626,0.12549,147.67,147.61,16.936]
[1726841084843,0.58398116,147.67,147.61,16.936]
[1726841085051,6.7737,147.63,147.58,6.7758]
[1726841085347,0.12549,147.61,147.58,6.7759]
[1726841086645,0.12549,147.62,147.58,6.7759]
[1726841086843,16.9299,147.67,147.59,1.35506304]
[1726841086844,6.7733,147.64,147.59,1.35506304]
[1726841087050,0.45849116,147.63,147.59,23.713]
[1726841087256,0.45849116,147.63,147.6,6.775]
[1726841087749,7.23219116,147.63,147.59,23.7133]
[1726841087933,0.12549,147.62,147.59,16.9379]
[1726841088123,0.12549,147.62,147.59,23.7134]
[1726841088551,6.7733,147.64,147.59,23.7134]
[1726841088848,0.45849116,147.63,147.59,23.7134]
[1726841089936,0.12549,147.63,147.59,23.7134]
[1726841090426,0.12549,147.63,147.6,6.7746]
[1726841090626,6.7732,147.65,147.61,8.12945036]
[1726841090829,20.0,147.67,147.62,6.774]
[1726841091034,0.2522661,147.68,147.63,8.12820215]
[1726841091350,0.2522661,147.68,147.63,18.28810215]
[1726841091544,0.45849116,147.67,147.63,16.9334]
[1726841091736,7.23059116,147.67,147.63,16.9334]
[1726841092046,0.45849116,147.67,147.61,23.2505]
[1726841092248,0.2522661,147.68,147.62,6.774]
[1726841092447,6.89739,147.67,147.63,6.7735]
[1726841092671,6.85588116,147.67,147.63,6.7735]
[1726841092833,7.48215726,147.68,147.63,6.7735]
[1726841093359,7.0236661,147.68,147.64,6.7731]
[1726841093652,0.45849116,147.67,147.64,6.7731]
[1726841094039,0.45849116,147.67,147.63,6.7735]
[1726841095131,7.48215726,147.68,147.63,6.7735]
[1726841095832,7.48215726,147.68,147.64,6.7731]
[1726841096023,0.71075726,147.68,147.64,16.932]
[1726841096227,0.12549,147.67,147.61,33.4122]
[1726841096429,0.12549,147.67,147.62,20.0]
[1726841096626,0.58398116,147.67,147.62,20.0]
[1726841096828,6.7729,147.65,147.61,23.7107]
[1726841097031,0.45849116,147.64,147.61,16.9362]
[1726841097252,6.7733,147.64,147.6,6.7749]
[1726841097457,6.89969,147.62,147.58,6.7758]
[1726841098155,0.12549,147.62,147.59,6.7753]
[1726841099856,6.7733,147.64,147.59,6.7753]
[1726841100171,6.7733,147.64,147.6,6.775]
[1726841100360,7.23219116,147.63,147.59,16.9382]
[1726841100559,6.89959,147.62,147.59,16.9382]
[1726841101657,0.12549,147.62,147.59,16.9382]
[1726841101857,0.12549,147.62,147.59,23.7133]
[1726841102056,6.7733,147.64,147.6,1.35491773]
[1726841102362,6.89839,147.65,147.6,8.12951773]
[1726841102540,6.89839,147.65,147.61,6.7745]
[1726841102741,6.7723,147.66,147.62,8.12885561]
[1726841103042,7.0240661,147.68,147.63,6.7733]
[1726841103250,7.0240661,147.68,147.64,6.7732]
[1726841103445,0.2522661,147.68,147.65,6.7726]
[1726841103755,0.2522661,147.68,147.65,16.9314]
[1726841104141,0.2522661,147.68,147.67,6.7718]
[1726841105452,6.7718,147.67,147.64,20.0]
[1726841105746,0.2522661,147.68,147.62,42.9362]
[1726841105944,0.2522661,147.68,147.64,6.7731]
[1726841106442,0.2522661,147.68,147.65,6.7726]
[1726841106854,0.2522661,147.68,147.65,8.12701535]
[1726841107060,0.2522661,147.68,147.67,6.7718]
[1726841107446,0.2522661,147.68,147.67,8.12601121]
[1726841107766,0.2522661,147.68,147.66,23.702]
[1726841108062,0.2522661,147.68,147.66,16.9301]
[1726841108468,0.2522661,147.68,147.65,6.7726]
[1726841109639,0.2522661,147.68,147.67,6.7718]
[1726841109848,0.2522661,147.68,147.67,30.548684]
[1726841110145,0.2522661,147.68,147.65,16.9314]
[1726841110352,0.2522661,147.68,147.65,23.7039]
[1726841110859,0.2522661,147.68,147.65,6.7727]
[1726841111046,0.2522661,147.68,147.62,59.8718]
[1726841111363,0.2522661,147.68,147.67,6.7718]
[1726841111566,0.2522661,147.68,147.67,26.7718]
[1726841112438,0.2522661,147.68,147.66,16.9299]
[1726841112439,0.2522661,147.68,147.66,23.702]
[1726841112680,0.2522661,147.68,147.67,8.12603464]
[1726841112958,0.2522661,147.68,147.67,51.90291864]
[1726841113360,0.2522661,147.68,147.67,6.7718]
[1726841113565,0.2522661,147.68,147.66,23.702]
[1726841114355,0.2522661,147.68,147.67,6.7718]
[1726841115243,0.2522661,147.68,147.67,8.12602022]
[1726841115460,0.2522661,147.68,147.67,6.7718]
[1726841115658,7.0237661,147.68,147.63,16.9339]
[1726841115859,0.2522661,147.68,147.64,20.0]
[1726841116075,0.2522661,147.68,147.64,6.7732]
[1726841116366,0.71075726,147.68,147.64,6.7732]
[1726841116954,0.71075726,147.68,147.65,6.7727]
[1726841117351,0.2522661,147.68,147.66,1.35439457]
[1726841117570,0.2522661,147.68,147.67,6.7718]
[1726841117746,0.2522661,147.68,147.67,51.90277082]
[1726841117941,0.2522661,147.68,147.67,71.18282348]
[1726841118148,0.2522661,147.68,147.67,87.29322348]
[1726841118562,0.2522661,147.68,147.67,85.93919416]
[1726841118970,0.2522661,147.68,147.67,66.659084]
[1726841119378,0.2522661,147.68,147.67,50.548684]
[1726841124178,0.2522661,147.68,147.67,26.7718]
[1726841124481,0.2522661,147.68,147.67,50.548684]
[1726841124857,0.2522661,147.68,147.67,51.90259957]
[1726841125371,0.2522661,147.68,147.67,50.548684]
[1726841131851,0.2522661,147.68,147.66,6.7721]
[1726841132057,0.2522661,147.68,147.66,20.0]
[1726841132871,0.2522661,147.68,147.67,6.7718]
[1726841134480,0.2522661,147.68,147.66,26.7721]
[1726841134653,0.2522661,147.68,147.65,16.9312]
[1726841135774,0.2522661,147.68,147.67,6.7718]
[1726841137279,0.2522661,147.68,147.62,6.0014]
[1726841137463,0.71075726,147.68,147.63,26.7736]
[1726841137782,0.12549,147.67,147.62,23.7086]
[1726841137961,6.7735,147.64,147.58,22.9646]
[1726841138166,0.12549,147.63,147.58,16.9388]
[1726841138355,0.12549,147.63,147.59,1.35484956]
[1726841139278,0.12549,147.63,147.6,6.7749]
[1726841139477,16.6007,147.65,147.61,6.7741]
[1726841140194,0.12549,147.64,147.6,16.9371]
[1726841140382,23.83229116,147.65,147.6,23.712]
[1726841140580,0.12549,147.64,147.6,23.712]
[1726841140763,0.12549,147.64,147.61,6.7744]
[1726841141087,0.58398116,147.64,147.6,23.712]
[1726841141274,0.58398116,147.64,147.6,16.9371]
[1726841141462,20.58398116,147.64,147.52,49.7275661]
[1726841141668,0.12549,147.6,147.54,22.9697]
[1726841142482,30.11788228,147.65,147.55,1.35514136]
[1726841142702,0.12549,147.63,147.59,6.7751]
[1726841143071,0.12549,147.62,147.59,6.7751]
[1726841144271,6.89959,147.62,147.58,23.7152]
[1726841145278,7.23319116,147.61,147.58,16.9394]
[1726841146072,6.89969,147.62,147.58,23.7153]
[1726841146293,0.12549,147.62,147.58,16.9394]
[1726841146480,0.12549,147.64,147.59,1.35494481]
[1726841146880,0.12549,147.64,147.61,6.7745]
[1726841147390,7.35728116,147.64,147.59,6.7753]
[1726841147893,7.35728116,147.64,147.58,16.9394]
[1726841147894,0.58398116,147.64,147.58,16.9394]
[1726841148095,0.58398116,147.64,147.57,6.7761]
[1726841148272,0.12549,147.61,147.58,6.7759]
[1726841148680,0.12549,147.61,147.58,8.13094662]
[1726841148998,0.12549,147.62,147.58,6.7759]
[1726841149290,6.89969,147.62,147.58,6.7759]
[1726841149692,0.12549,147.62,147.59,6.7755]
[1726841149864,0.12549,147.62,147.59,16.9384]
[1726841150067,0.12549,147.63,147.59,23.7137]
[1726841150263,6.7737,147.63,147.59,23.7137]
[1726841150473,0.58398116,147.62,147.59,23.7137]
[1726841150684,6.7741,147.62,147.59,16.9384]
[1726841151880,0.12549,147.62,147.59,23.7138]
[1726841152076,16.6007,147.65,147.6,1.35501769]